bitfinex/quotes_SOLUSD_20250330
["timestamp","ask_amount","ask_price","bid_price","bid_amount"]
[1743333047519,47.1,125.77,125.71,222.192987]
[1743333054738,0.03,125.78,125.71,222.192987]
[1743333054917,47.13,125.78,125.71,222.192987]
[1743333055924,0.03,125.78,125.72,1.6638]
[1743333056138,0.03,125.78,125.74,6.5652]
[1743333056353,0.03,125.78,125.77,20.0]
[1743333056540,7.41473887,125.83,125.78,135.35]
[1743333056719,7.41473887,125.83,125.79,6.82]
[1743333056914,55.28473887,125.83,125.79,6.82]
[1743333057339,47.87,125.82,125.79,6.82]
[1743333058223,47.87,125.84,125.79,6.82]
[1743333060835,47.87,125.84,125.79,222.162987]
[1743333063723,47.87,125.84,125.8,6.82]
[1743333065129,47.87,125.82,125.8,6.82]
[1743333066028,47.87,125.82,125.79,215.342987]
[1743333067143,48.04216157,125.84,125.79,215.342987]
[1743333068250,0.03,125.84,125.79,215.342987]
[1743333072442,0.03,125.84,125.8,1.5038]
[1743333075359,0.03,125.84,125.8,216.846787]
[1743333080767,0.03,125.84,125.81,6.6084]
[1743333080969,0.03,125.84,125.82,6.82]
[1743333084259,0.03,125.84,125.82,222.162987]
[1743333089077,0.03,125.84,125.82,215.342987]
[1743333089261,0.03,125.84,125.83,6.82]
[1743333090177,2.9364981,125.85,125.84,135.32]
[1743333090374,2.9364981,125.85,125.84,215.312987]
[1743333096153,49.4314,125.92,125.85,132.3835019]
[1743333096393,49.4314,125.92,125.85,212.3764889]
[1743333100465,47.87,125.92,125.85,212.3764889]
[1743333100666,47.87,125.92,125.85,218.9567889]
[1743333101582,47.87,125.92,125.85,212.3764889]
[1743333107582,49.4493,125.9,125.85,212.3764889]
[1743333107788,49.4493,125.9,125.85,79.992987]
[1743333108596,47.87,125.88,125.85,79.992987]
[1743333108915,47.87,125.86,125.85,215.492987]
[1743333110593,47.87,125.86,125.84,0.063]
[1743333110788,47.87,125.85,125.84,0.063]
[1743333111983,47.87,125.86,125.84,0.063]
[1743333120501,47.87,125.88,125.84,0.063]
[1743333120695,47.87,125.88,125.84,135.563]
[1743333124102,49.4493,125.9,125.84,135.563]
[1743333124307,47.87,125.9,125.84,142.383]
[1743333124505,47.87,125.9,125.84,144.0448]
[1743333124687,47.87,125.9,125.84,224.037787]
[1743333125389,47.87,125.88,125.84,222.375987]
[1743333125908,47.87,125.88,125.84,215.555987]
[1743333126201,47.87,125.86,125.84,80.055987]
[1743333142722,47.9,125.86,125.84,80.055987]
[1743333143019,0.03,125.86,125.84,80.055987]
[1743333144222,47.87,125.85,125.84,80.055987]
[1743333145204,47.9,125.86,125.84,80.055987]
[1743333160025,66.51964886,125.85,125.84,80.055987]
[1743333160223,66.51964886,125.85,125.84,0.063]
[1743333162322,66.66181043,125.85,125.84,0.063]
[1743333165312,67.16181043,125.85,125.84,0.063]
[1743333168331,75.15481043,125.85,125.84,0.063]
[1743333168629,74.65481043,125.85,125.84,0.063]
[1743333169345,75.15481043,125.85,125.84,0.063]
[1743333170031,74.65481043,125.85,125.84,0.063]
[1743333170237,75.15481043,125.85,125.84,0.063]
[1743333172244,67.87,125.79,125.78,0.063]
[1743333172414,87.01964886,125.79,125.73,137.1497]
[1743333173313,47.87,125.77,125.73,135.5]
[1743333173530,47.87,125.77,125.73,137.1581]
[1743333174826,47.87,125.78,125.73,143.9781]
[1743333176733,20.0,125.79,125.73,143.9781]
[1743333176734,47.87,125.76,125.73,143.9781]
[1743333177819,47.87,125.78,125.73,143.9781]
[1743333179027,47.87,125.78,125.73,144.0411]
[1743333181244,47.87,125.78,125.73,224.034087]
[1743333191861,47.9,125.78,125.73,224.034087]
[1743333200843,0.03,125.78,125.73,224.034087]
[1743333202137,47.9,125.78,125.73,224.034087]
[1743333202557,47.9,125.78,125.73,217.214087]
[1743333202747,47.9,125.78,125.73,224.034087]
[1743333204864,0.03,125.78,125.73,224.034087]
[1743333205053,47.87,125.77,125.73,217.214087]
[1743333206161,47.9,125.78,125.73,217.214087]
[1743333209472,47.87,125.77,125.73,217.214087]
[1743333209680,47.87,125.77,125.73,215.555987]
[1743333211267,47.87,125.76,125.73,215.555987]
[1743333212270,47.87,125.74,125.73,0.063]
[1743333214478,18.64964886,125.74,125.73,0.063]
[1743333214653,66.51964886,125.74,125.73,0.063]
[1743333215477,66.66181043,125.74,125.73,0.063]
[1743333218582,47.87,125.75,125.73,0.063]
[1743333219862,47.87,125.77,125.73,0.063]
[1743333222880,18.64964886,125.76,125.73,0.063]
[1743333223079,66.51964886,125.74,125.73,0.063]
[1743333223257,47.87,125.74,125.73,0.063]
[1743333224285,47.87,125.76,125.73,0.063]
[1743333228787,47.87,125.77,125.73,0.063]
[1743333230889,47.87,125.77,125.73,135.563]
[1743333233791,47.87,125.77,125.73,134.963]
[1743333240068,47.87,125.77,125.73,135.026]
[1743333248501,47.87,125.77,125.73,0.063]
[1743333251994,47.87,125.77,125.73,222.375987]
[1743333251995,0.03,125.77,125.73,222.375987]
[1743333255286,0.03,125.77,125.74,6.1868]
[1743333257202,0.03,125.77,125.75,1.6463]
[1743333257408,0.03,125.77,125.75,217.139287]
[1743333260391,0.03,125.78,125.77,135.47]
[1743333260589,0.03,125.78,125.77,222.282987]
[1743333263206,0.03,125.78,125.77,223.929287]
[1743333264205,0.03,125.78,125.77,242.863259]
[1743333264400,0.03,125.85,125.77,242.863259]
[1743333264792,0.03,125.78,125.77,242.863259]
[1743333264995,0.03,125.78,125.77,243.14758214]
[1743333267007,0.03,125.85,125.81,1.613]
[1743333267211,0.03,125.85,125.82,6.82]
[1743333272113,0.03,125.85,125.82,222.282987]
[1743333274318,0.03,125.85,125.82,215.462987]
[1743333283720,0.03,125.85,125.82,79.992987]
[1743333289704,0.03,125.85,125.82,215.462987]
[1743333295428,0.03,125.85,125.82,79.992987]
[1743333301335,0.03,125.85,125.82,215.462987]
[1743333301925,0.03,125.85,125.82,217.045587]
[1743333303634,0.03,125.85,125.82,223.430187]
[1743333306538,0.03,125.85,125.82,223.865587]
[1743333306715,0.03,125.85,125.82,215.462987]
[1743333306917,47.87,125.83,125.78,215.525987]
[1743333307137,47.87,125.83,125.78,222.345987]
[1743333311940,47.87,125.81,125.78,80.055987]
[1743333312846,47.87,125.82,125.78,80.055987]
[1743333315242,47.87,125.8,125.78,80.055987]
[1743333315940,18.79181043,125.82,125.78,80.055987]
[1743333317941,66.66181043,125.82,125.78,80.055987]
[1743333324533,66.69181043,125.82,125.78,80.055987]
[1743333324732,0.03,125.82,125.78,80.055987]
[1743333325653,47.9,125.82,125.78,80.055987]
[1743333326248,47.9,125.82,125.78,222.345987]
[1743333326249,0.03,125.82,125.78,222.345987]
[1743333326462,0.03,125.82,125.78,223.918787]
[1743333331044,0.03,125.82,125.78,230.549587]
[1743333343374,0.03,125.82,125.79,18.933972]
[1743333344354,0.03,125.82,125.81,21.5819]
[1743333344673,0.03,125.85,125.82,141.7963]
[1743333344868,0.03,125.85,125.83,6.86]
[1743333348074,0.03,125.85,125.83,222.292987]
[1743333349274,0.03,125.85,125.84,1.87842314]
[1743333349477,0.03,125.85,125.84,20.528072]
[1743333350378,0.03,125.9,125.86,135.38]
[1743333350582,0.03,125.9,125.87,6.86]
[1743333350754,0.03,125.9,125.87,222.232987]
[1743333352384,0.03,125.9,125.88,1.5941]
[1743333354079,0.03,125.9,125.89,0.28432314]
[1743333354280,0.03,125.95,125.91,0.28432314]
[1743333354579,0.03,125.95,125.92,6.88]
[1743333354953,0.03,125.95,125.92,222.252987]
[1743333355180,0.03,125.95,125.93,20.526972]
[1743333355764,0.03,125.95,125.94,25.321472]
[1743333356067,0.03,125.98,125.96,135.35]
[1743333356273,0.03,125.98,125.96,215.342987]
[1743333364101,0.03,125.98,125.96,221.730487]
[1743333365914,0.03,125.98,125.97,1.593]
[1743333368898,0.03,125.98,125.97,216.935987]
[1743333370012,0.03,125.98,125.97,215.342987]
[1743333374298,6.37454319,126.08,125.99,0.28432314]
[1743333374497,7.79844766,126.08,126.0,6.88]
[1743333374824,66.46964886,126.09,126.0,6.88]
[1743333375896,54.20463363,126.09,126.0,6.88]
[1743333376616,56.08802112,126.09,126.0,6.88]
[1743333376995,49.70338749,126.09,126.0,6.88]
[1743333377291,49.70338749,126.09,126.0,222.192987]
[1743333377800,47.82,126.09,126.0,222.192987]
[1743333377998,1.6599,126.1,126.02,1.5497]
[1743333378295,1.6599,126.1,126.02,216.862687]
[1743333380014,1.6599,126.1,126.03,18.933972]
[1743333380317,1.6599,126.1,126.04,7.02]
[1743333380523,1.6599,126.1,126.04,222.332987]
[1743333381330,2.9664981,126.11,126.05,18.933972]
[1743333381499,2.9664981,126.11,126.05,234.246959]
[1743333381703,2.9664981,126.11,126.05,215.312987]
[1743333382315,2.9664981,126.11,126.06,18.933972]
[1743333382527,2.9664981,126.11,126.05,215.312987]
[1743333385434,2.9664981,126.11,126.06,7.1]
[1743333387124,2.9664981,126.11,126.07,1.5001]
[1743333387833,2.9664981,126.11,126.06,228.624887]
[1743333404839,2.9664981,126.11,126.07,1.6386]
[1743333406845,2.9664981,126.11,126.07,216.951587]
[1743333407931,2.9664981,126.11,126.08,18.933972]
[1743333408247,49.401,126.17,126.11,132.3835019]
[1743333408426,49.401,126.17,126.12,7.16]
[1743333409446,49.401,126.17,126.11,212.3464889]
[1743333413246,49.901,126.17,126.11,212.3464889]
[1743333415046,49.401,126.17,126.11,212.3464889]
[1743333415246,49.901,126.17,126.11,212.3464889]
[1743333416947,66.46964886,126.16,126.11,212.3464889]
[1743333418321,66.61181043,126.16,126.11,212.3464889]
[1743333418540,66.61181043,126.16,126.11,79.962987]
[1743333420346,67.11181043,126.16,126.11,79.962987]
[1743333420534,67.11181043,126.16,126.08,139.5235019]
[1743333420731,66.46964886,126.13,126.08,132.3835019]
[1743333420938,66.46964886,126.13,126.06,212.3464889]
[1743333421145,66.46964886,126.13,126.06,212.4094889]
[1743333421453,66.96964886,126.13,126.06,212.4094889]
[1743333421841,47.82,126.12,126.06,212.4094889]
[1743333424436,47.82,126.1,126.06,0.063]
[1743333424641,49.3226,126.1,126.06,0.063]
[1743333426932,47.82,126.08,126.06,0.063]
[1743333431965,47.82,126.07,126.06,0.063]
[1743333432338,66.61181043,126.07,126.06,0.063]
[1743333444464,47.82,126.08,126.06,0.063]
[1743333445647,47.82,126.1,126.06,0.063]
[1743333447451,47.82,126.1,126.06,132.4465019]
[1743333448770,47.85,126.11,126.06,132.4465019]
[1743333449067,0.03,126.11,126.07,6.0126]
[1743333450076,0.03,126.11,126.07,218.3590889]
[1743333453078,0.03,126.11,126.08,1.5127]
[1743333453462,0.03,126.11,126.08,213.8591889]
[1743333456361,0.03,126.13,126.11,132.3535019]
[1743333456565,0.03,126.13,126.12,6.0126]
[1743333458479,0.03,126.13,126.11,219.3564889]
[1743333460479,0.03,126.13,126.11,212.3164889]
[1743333463870,0.03,126.13,126.11,79.962987]
[1743333465082,47.85,126.13,126.09,132.3535019]
[1743333465900,47.85,126.13,126.06,219.3994889]
[1743333467597,47.82,126.11,126.06,212.3794889]
[1743333468497,47.82,126.12,126.06,212.3794889]
[1743333470702,47.82,126.1,126.06,212.3794889]
[1743333470904,47.82,126.1,126.06,80.025987]
[1743333471712,47.82,126.11,126.06,80.025987]
[1743333484519,47.85,126.11,126.06,80.025987]
[1743333486012,47.85,126.11,126.06,212.3794889]
[1743333487822,58.43284757,126.11,126.06,212.3794889]
[1743333490729,56.88384757,126.11,126.06,212.3794889]
[1743333491927,56.88384757,126.11,126.06,80.025987]
[1743333493829,47.82,126.09,126.06,0.063]
[1743333496703,47.82,126.1,126.06,0.063]
[1743333497523,27.71349643,126.11,126.06,0.063]
[1743333497524,47.82,126.08,126.06,0.063]
[1743333498603,47.96216157,126.09,126.06,0.063]
[1743333512750,47.82,126.1,126.06,0.063]
[1743333512949,0.03,126.11,126.07,6.4651]
[1743333513745,0.03,126.11,126.07,141.9651]
[1743333516324,0.03,126.11,126.08,1.5573]
[1743333516631,0.03,126.11,126.09,6.88]
[1743333516829,0.03,126.11,126.09,222.342987]
[1743333517445,0.03,126.11,126.1,6.4651]
[1743333521051,0.03,126.11,126.1,135.5]
[1743333524132,0.03,126.11,126.09,215.462987]
[1743333525756,0.03,126.11,126.09,135.5]
[1743333526046,0.03,126.11,126.06,0.063]
[1743333526252,0.03,126.11,126.06,135.563]
[1743333527351,47.82,126.1,126.06,135.563]
[1743333528374,47.85,126.11,126.06,135.563]
[1743333530034,47.85,126.11,126.06,0.063]
[1743333530752,47.82,126.1,126.06,0.063]
[1743333531946,47.85,126.11,126.06,0.063]
[1743333535963,47.85,126.11,126.06,135.563]
[1743333540860,47.82,126.1,126.06,135.563]
[1743333541845,47.85,126.11,126.06,0.063]
[1743333545669,47.82,126.07,126.06,0.063]
[1743333546775,47.82,126.08,126.06,0.063]
[1743333550275,66.61181043,126.07,126.06,0.063]
[1743333561767,64.22591395,126.07,126.06,0.063]
[1743333570199,74.85642263,126.07,125.99,142.32]
[1743333570491,74.85642263,126.07,125.99,6.82]
[1743333571779,109.65291395,126.07,125.98,8.0861]
[1743333571977,86.46964886,126.03,125.98,8.0861]
[1743333573478,86.46964886,126.03,125.98,0.063]
[1743333575480,0.14216157,126.02,125.98,0.063]
[1743333576014,0.14216157,125.99,125.98,0.063]
[1743333576180,66.61181043,125.99,125.98,0.063]
[1743333578588,62.8422134,125.99,125.98,0.063]
[1743333583700,67.82,125.99,125.98,0.063]
[1743333584216,47.82,125.99,125.98,0.063]
[1743333584783,10.63050868,126.02,125.98,0.063]
[1743333584784,47.82,126.0,125.98,0.063]
[1743333585607,66.46964886,125.99,125.98,0.063]
[1743333590820,77.10015754,125.99,125.98,0.063]
[1743333592100,77.13015754,125.99,125.98,0.063]
[1743333595005,66.49964886,125.99,125.98,0.063]
[1743333597423,77.13015754,125.99,125.98,0.063]
[1743333602524,66.49964886,125.99,125.98,0.063]
[1743333605229,47.85,125.99,125.98,0.063]
[1743333606633,0.03,125.99,125.98,0.063]
[1743333637357,0.03,125.99,125.98,135.563]
[1743333641462,0.03,125.99,125.98,0.063]
[1743333642854,66.49964886,125.99,125.98,0.063]
[1743333644449,68.13454886,125.99,125.98,0.063]
[1743333646666,74.97454886,125.99,125.98,0.063]
[1743333650476,81.56554886,125.99,125.94,0.063]
[1743333650771,0.5,125.78,125.71,0.063]
[1743333650972,66.46964886,125.74,125.71,0.063]
[1743333651172,47.82,125.74,125.71,0.063]
[1743333651669,47.8,125.76,125.71,0.063]
[1743333652346,47.8,125.74,125.71,0.063]
[1743333652548,66.44964886,125.74,125.71,0.063]
[1743333652861,66.44964886,125.74,125.73,60.26432429]
[1743333653168,47.8,125.72,125.71,0.063]
[1743333654050,51.78605414,125.72,125.71,0.063]
[1743333655478,3.98605414,125.72,125.71,0.063]
[1743333656975,8.12669947,125.76,125.71,0.063]
[1743333657350,8.12669947,125.76,125.71,7.043]
[1743333658651,3.98605414,125.77,125.71,7.043]
[1743333661776,7.959,125.76,125.71,7.043]
[1743333662176,18.64964886,125.75,125.71,7.043]
[1743333662382,18.64964886,125.75,125.71,0.063]
[1743333663401,66.44964886,125.75,125.71,0.063]
[1743333663572,3.98605414,125.74,125.71,0.063]
[1743333664593,8.12669947,125.72,125.71,0.063]
[1743333665494,55.92669947,125.72,125.71,0.063]
[1743333665981,51.78605414,125.72,125.71,0.063]
[1743333666300,59.74505414,125.72,125.71,0.063]
[1743333667361,78.394703,125.72,125.71,0.063]
[1743333671890,91.61164222,125.72,125.71,0.063]
[1743333673684,115.51164222,125.72,125.71,0.063]
[1743333673881,115.51164222,125.72,125.71,0.01383763]
[1743333675788,75.759,125.7,125.69,0.063]
[1743333675988,107.62558808,125.7,125.69,0.063]
[1743333678275,94.40864886,125.7,125.69,0.063]
[1743333678474,98.394703,125.7,125.69,0.063]
[1743333679707,59.74505414,125.7,125.69,0.063]
[1743333680186,55.759,125.7,125.69,0.063]
[1743333686370,74.40864886,125.7,125.69,0.063]
[1743333688275,87.62558808,125.7,125.69,0.063]
[1743333688480,111.52558808,125.7,125.69,0.063]
[1743333688685,111.52558808,125.7,125.69,0.01706247]
[1743333695095,122.794593,125.7,125.69,0.01706247]
[1743333695299,122.794593,125.7,125.65,0.063]
[1743333695300,74.40864886,125.66,125.65,0.063]
[1743333696814,85.67765378,125.66,125.65,0.063]
[1743333698281,74.40864886,125.66,125.65,0.063]
[1743333700604,87.62558808,125.66,125.65,0.063]
[1743333700904,138.02463904,125.66,125.65,0.063]
[1743333702687,132.40864886,125.65,125.64,0.063]
[1743333702888,63.77598809,125.65,125.64,0.063]
[1743333703410,64.27598809,125.65,125.64,0.063]
[1743333704308,42.54964886,125.62,125.61,0.063]
[1743333704506,62.66658808,125.62,125.61,0.063]
[1743333705404,70.62558808,125.62,125.61,0.063]
[1743333705598,71.12558808,125.62,125.61,0.063]
[1743333705805,70.62558808,125.62,125.61,0.063]
[1743333706006,71.12558808,125.62,125.61,0.063]
[1743333707112,47.8,125.54,125.52,6.0724]
[1743333707294,0.05040001,125.53,125.52,0.063]
[1743333711613,18.70004887,125.53,125.52,0.063]
[1743333711819,66.50004887,125.53,125.52,0.063]
[1743333713411,0.05040001,125.53,125.52,0.063]
[1743333716404,66.50004887,125.53,125.52,0.063]
[1743333717810,78.83876587,125.53,125.52,0.063]
[1743333718312,102.73876587,125.53,125.52,0.063]
[1743333719406,110.34964886,125.52,125.51,0.063]
[1743333719619,122.68836586,125.52,125.51,0.063]
[1743333722031,130.64736586,125.52,125.51,0.063]
[1743333723312,78.78836586,125.52,125.51,0.063]
[1743333727713,66.44964886,125.52,125.51,0.063]
[1743333734125,66.51264886,125.52,125.51,0.063]
[1743333739832,0.063,125.52,125.51,0.063]
[1743333740025,47.863,125.52,125.51,0.063]
[1743333742153,66.51264886,125.52,125.51,0.063]
[1743333742539,121.16241919,125.52,125.51,0.063]
[1743333743260,211.02141919,125.52,125.51,0.063]
[1743333745751,187.12141919,125.52,125.51,0.063]
[1743333747055,179.16241919,125.52,125.51,0.063]
[1743333747254,179.16241919,125.52,125.48,0.03]
[1743333747255,67.8,125.49,125.48,0.03]
[1743333747457,86.44964886,125.49,125.48,0.03]
[1743333748634,97.19941919,125.49,125.48,0.03]
[1743333749256,179.09941919,125.49,125.48,0.03]
[1743333750057,202.99941919,125.49,125.48,0.03]
[1743333750961,209.33391692,125.49,125.48,0.03]
[1743333751460,195.8378769,125.49,125.48,0.03]
[1743333752051,185.43391692,125.49,125.48,0.03]
[1743333754466,209.33391692,125.49,125.48,0.03]
[1743333754840,97.19941919,125.48,125.47,2.3664981]
[1743333755142,97.2498192,125.48,125.47,2.3664981]
[1743333755547,97.2498192,125.48,125.4,6.3447]
[1743333755742,179.1498192,125.48,125.4,6.3447]
[1743333757665,179.1498192,125.48,125.4,6.3747]
[1743333758662,97.2498192,125.48,125.4,6.3747]
[1743333758971,77.2498192,125.48,125.4,6.3747]
[1743333759143,77.2498192,125.48,125.41,1.6495]
[1743333761271,66.50004887,125.48,125.41,1.6495]
[1743333761739,0.05040001,125.48,125.41,137.1495]
[1743333761945,0.05040001,125.48,125.42,6.0496]
[1743333762163,0.05040001,125.48,125.43,6.88]
[1743333764248,0.05040001,125.48,125.44,1.6495]
[1743333770363,0.05040001,125.48,125.44,1.4795]
[1743333770560,0.11340001,125.48,125.44,1.4795]
[1743333771561,18.76304887,125.48,125.44,1.4795]
[1743333771763,0.11340001,125.48,125.44,1.4795]
[1743333773755,0.11340001,125.48,125.47,20.0]
[1743333773952,0.11340001,125.48,125.47,33.344]
[1743333781281,0.11340001,125.48,125.47,6.88]
[1743333781479,0.11340001,125.48,125.45,6.86]
[1743333784173,0.11340001,125.48,125.44,1.4795]
[1743333784380,0.11340001,125.48,125.46,6.86]
[1743333791079,0.11340001,125.48,125.46,142.36]
[1743333794369,0.11340001,125.48,125.44,0.03]
[1743333794901,0.11340001,125.48,125.44,6.89]
[1743333795707,0.11340001,125.48,125.44,0.03]
[1743333796012,0.11340001,125.48,125.44,6.89]
[1743333798992,0.11340001,125.48,125.44,148.8062]
[1743333805403,0.11340001,125.48,125.47,20.0]
[1743333807709,0.11340001,125.48,125.47,21.6416]
[1743333808594,0.11340001,125.48,125.47,157.1416]
[1743333809910,0.11340001,125.48,125.47,21.6416]
[1743333810303,0.11340001,125.48,125.47,176.29124886]
[1743333812516,0.11340001,125.48,125.47,176.575572]
[1743333812817,0.11340001,125.48,125.47,176.075572]
[1743333814103,0.11340001,125.48,125.47,157.1416]
[1743333814313,0.11340001,125.48,125.47,135.5]
[1743333814497,0.11340001,125.48,125.47,6.86]
[1743333814701,0.11340001,125.48,125.47,26.86]
[1743333821033,0.11340001,125.48,125.47,6.86]
[1743333832134,0.11340001,125.48,125.47,13.2895]
[1743333832634,0.11340001,125.48,125.47,148.7895]
[1743333838754,0.11340001,125.48,125.47,142.36]
[1743333840455,0.11340001,125.48,125.47,135.5]
[1743333840651,0.11340001,125.48,125.47,20.0]
[1743333840833,0.11340001,125.48,125.47,6.86]
[1743333842154,0.11340001,125.48,125.47,26.86]
[1743333842353,0.11340001,125.48,125.47,6.86]
[1743333842532,0.11340001,125.48,125.47,26.86]
[1743333843152,0.11340001,125.48,125.47,142.36]
[1743333849461,0.11340001,125.48,125.46,135.5]
[1743333849652,0.11340001,125.48,125.47,6.86]
[1743333865989,0.11340001,125.48,125.46,135.5]
[1743333866283,0.11340001,125.48,125.47,6.86]
[1743333872589,0.11340001,125.48,125.46,135.5]
[1743333872794,0.11340001,125.48,125.44,6.89]
[1743333874090,47.8,125.45,125.44,0.03]
[1743333874485,1.5241,125.47,125.44,0.03]
[1743333874690,0.05040001,125.46,125.44,0.03]
[1743333887605,0.05040001,125.46,125.44,135.53]
[1743333889712,0.11340001,125.46,125.44,135.53]
[1743333894730,0.11340001,125.46,125.45,6.86]
[1743333900133,0.11340001,125.46,125.44,0.03]
[1743333900427,0.11340001,125.46,125.44,6.89]
[1743333905627,26.95072138,125.49,125.44,6.89]
[1743333907645,18.64964886,125.48,125.44,0.03]
[1743333907848,8.023,125.47,125.44,0.03]
[1743333909323,18.64964886,125.46,125.44,0.03]
[1743333909858,24.75109162,125.46,125.44,0.03]
[1743333914855,24.81409162,125.46,125.44,0.03]
[1743333916036,36.06560248,125.46,125.44,0.03]
[1743333920563,6.16444276,125.46,125.44,0.03]
[1743333921670,0.063,125.46,125.44,0.03]
[1743333925366,6.10144276,125.45,125.44,0.03]
[1743333925569,24.75109162,125.45,125.44,0.03]
[1743333930177,6.10144276,125.45,125.44,0.03]
[1743333933973,0.063,125.46,125.44,0.03]
[1743333939168,86.44964886,125.45,125.44,0.03]
[1743333948288,86.44964886,125.41,125.4,0.03]
[1743333948474,98.11932639,125.41,125.4,0.03]
[1743333953572,86.44964886,125.41,125.4,0.03]
[1743333957172,98.11932639,125.41,125.4,0.03]
[1743333957376,118.11932639,125.41,125.4,0.03]
[1743333958295,125.01932639,125.41,125.4,0.03]
[1743333958504,132.78952639,125.41,125.4,0.03]
[1743333960308,140.78352639,125.41,125.4,0.03]
[1743333960605,164.78352639,125.41,125.4,0.03]
[1743333961612,174.97062302,125.41,125.4,0.03]
[1743333962607,90.44964886,125.4,125.39,0.03]
[1743333962824,112.30642302,125.4,125.39,0.03]
[1743333963706,66.44964886,125.34,125.28,14.6573]
[1743333964591,66.44964886,125.34,125.28,7.7573]
[1743333967223,78.11932639,125.34,125.28,7.7573]
[1743333967421,78.11932639,125.34,125.27,0.03]
[1743333969517,66.44964886,125.32,125.27,0.03]
[1743333969820,78.11932639,125.32,125.27,0.03]
[1743333970211,66.44964886,125.3,125.27,0.03]
[1743333973205,86.44964886,125.28,125.27,0.03]
[1743333975626,98.11932639,125.28,125.27,0.03]
[1743333980928,66.44964886,125.28,125.27,0.03]
[1743333981422,47.8,125.29,125.27,0.03]
[1743333983002,66.44964886,125.28,125.27,0.03]
[1743333986631,78.11932639,125.28,125.27,0.03]
[1743333988235,66.44964886,125.28,125.27,0.03]
[1743333996416,66.44964886,125.28,125.22,4.5004981]
[1743333996617,66.44964886,125.24,125.22,2.9364981]
[1743334002345,66.44964886,125.23,125.22,2.9364981]
[1743334011146,66.44964886,125.23,125.22,2.9664981]
[1743334012755,48.02,125.24,125.22,2.9664981]
[1743334013260,66.66964886,125.25,125.22,2.9664981]
[1743334040386,86.66964886,125.23,125.22,2.9664981]
[1743334048603,129.0698375,125.23,125.22,2.9664981]
[1743334048909,48.02,125.17,125.11,88.426387]
[1743334049084,48.02,125.17,125.11,88.319934]
[1743334049994,48.02,125.17,125.11,223.819934]
[1743334051785,48.02,125.15,125.11,216.939934]
[1743334052604,48.02,125.13,125.09,0.03]
[1743334053192,48.02,125.11,125.09,0.03]
[1743334054603,18.64964886,125.12,125.09,0.03]
[1743334054604,66.66964886,125.1,125.09,0.03]
[1743334054918,48.02,125.1,125.09,0.03]
[1743334055508,77.1729375,125.14,125.09,0.03]
[1743334055685,66.66964886,125.14,125.09,0.03]
[1743334058215,18.64964886,125.12,125.09,0.03]
[1743334059843,66.66964886,125.12,125.09,0.03]
[1743334060389,18.64964886,125.12,125.09,0.03]
[1743334060799,48.02,125.14,125.09,0.03]
[1743334060999,18.64964886,125.15,125.09,0.03]
[1743334062217,66.66964886,125.15,125.09,0.03]
[1743334064020,66.66964886,125.13,125.09,0.03]
[1743334066120,77.17285009,125.13,125.09,0.03]
[1743334066621,86.66964886,125.1,125.09,0.03]
[1743334067196,117.17285009,125.1,125.09,0.03]